[Event "Germany Countries-chT Youth 2022"]
[Site "Wiesbaden"]
[Date "2022.10.02"]
[Round "3"]
[White "Möller, Maurin"]
[Black "Nizamova, Rita"]
[Result "1-0"]
[ECO "B22"]
[WhiteElo "1936"]
[BlackElo "1813"]
[Annotator "TA"]
[PlyCount "55"]
[EventDate "2022.09.28"]
[EventType "team-tourn"]
[EventRounds "7"]
[EventCountry "GER"]
[SourceTitle "playchess.com"]
[Source "ChessBase"]
[SourceQuality "1"]
[TimeControl "40/5400+30:1800+30"]

{[%evp 9,55,8,256,257,270,285,278,274,288,313,308,297,313,352,332,327,361,343,413,455,427,399,755,756,868,852,856,826,832,814,1831,1813,1703,1258,29979,1288,29989,29989,29989,29990,29990,29991,29991,29992,29992,29990,29998,29999]} 1. e4 {[%emt 0:00:03][%cal Be2e4,Be4e5][%mdl 32]} c5 {[%emt 0:00:02]} 2. c3 {[%emt 0:00:05]} Nf6 {[%emt 0:00:05]} 3. e5 {[%emt 0:00:04]} Nd5 {[%emt 0:00:08]} 4. d4 {[%emt 0:00:04]} cxd4 {[%emt 0:00:07]} 5. Nf3 {[%emt 0:00:03]} dxc3 $2 {[%emt 0:01:00] [#]} 6. Qxd5 $18 {[%emt 0:00:07] B22: Sicilian: 2 c3.} cxb2 {[%emt 0:00:53]} 7. Bxb2 {[%emt 0:00:07]} e6 {[%emt 0:00:02]} 8. Qe4 {[%emt 0:01:04] [#] White has a decisive advantage.} Qb6 $146 {[%emt 0:02:44]} ({Predecessor:} 8... Nc6 9. Nc3 a6 10. Bd3 Be7 11. O-O b5 12. Rac1 Bb7 13. Qe2 h6 14. Rfd1 O-O {1-0 (30) Woodhouse,S (1740)-MacMillen,A (1714) ICCF email 2016}) 9. Bd4 {[%emt 0:00:59]} Qb4+ {[%emt 0:00:45]} 10. Nbd2 {[%emt 0:00:36]} Nc6 {[%emt 0:01:16]} 11. Rb1 {[%emt 0:01:15]} Qa5 {[%emt 0:02:54]} 12. Bd3 {[%emt 0:04:35]} Bb4 {[%emt 0:06:33]} 13. a3 {[%emt 0:01:10]} Qxa3 {[%emt 0:02:38]} 14. O-O {[%emt 0:00:18][%cal Bh1f1,Bf1c1,Bc1c7][%mdl 32]} Nxd4 {[%emt 0:14:00]} 15. Qxd4 {[%emt 0:01:21]} Bxd2 {[%emt 0:00:47]} (15... Bc5 16. Qe4 Be7) (15... Bc5 16. Qe4 Be7) 16. Nxd2 {[%emt 0:00:02][%cal Bf3d2,Bd2e4,Be4d6][%mdl 32]} Qe7 {[%emt 0:04:07]} 17. Ne4 {[%emt 0:01:53]} Kf8 {[%emt 0:15:08]} 18. Rfc1 {[%emt 0:00:38]} g6 {[%emt 0:00:22]} 19. Rc7 {[%emt 0:01:47]} Qa3 {[%emt 0:14:11]} 20. Nd6 {[%emt 0:01:22][%cal Od4h4] [#] Qh4! would kill now.} Kg7 {[%emt 0:00:24]} 21. Rbc1 {[%emt 0:01:05]} Qb3 {[%emt 0:01:30]} 22. Bf1 {[%emt 0:00:20]} (22. Qf4 $142 Rf8 23. Qf6+ Kg8 24. Nxf7 Qd1+ 25. Rxd1 Rxf7 26. Qg5 Kf8 27. Bc4) 22... b5 {[%emt 0:02:22]} 23. Qh4 {[%emt 0:00:23] White mates.} h5 {[%emt 0:01:17]} 24. Qf6+ {[%emt 0:00:28]} Kh7 {[%emt 0:00:20]} 25. Qxf7+ {[%emt 0:00:10]} Kh6 {[%emt 0:00:02]} 26. Qf4+ {[%emt 0:00:07]} Kg7 {[%emt 0:00:43]} 27. Nxc8 {[%emt 0:00:07]} Raxc8 {[%emt 0:00:36]} 28. Rxd7+ {[%emt 0:00:10] Black did not feel at home in the position after the opening.  Weighted Error Value: White=0.02 (flawless) /Black=0.92} 1-0

[Event "Germany Countries-chT Youth 2022"]
[Site "Wiesbaden"]
[Date "2022.10.02"]
[Round "3"]
[White "Feidt, Jonas"]
[Black "Heinrich, John"]
[Result "1-0"]
[ECO "A37"]
[WhiteElo "1908"]
[BlackElo "2139"]
[Annotator "TA"]
[PlyCount "75"]
[EventDate "2022.09.28"]
[EventType "team-tourn"]
[EventRounds "7"]
[EventCountry "GER"]
[SourceTitle "playchess.com"]
[Source "ChessBase"]
[SourceQuality "1"]
[TimeControl "40/5400+30:1800+30"]

{[%evp 15,75,-11,-14,-17,-20,-9,25,23,43,60,85,62,64,50,47,48,56,68,108,108,102,93,161,156,204,193,252,222,375,369,404,335,353,270,273,253,355,129,312,53,398,366,370,378,361,348,350,334,576,520,541,404,472,491,604,589,1624,1616,2151,2058,2450,2337]} 1. c4 {[%emt 0:00:04]} c5 {[%emt 0:00:18]} 2. g3 {[%emt 0:00:17]} Nc6 {[%emt 0:00:14]} 3. Bg2 {[%emt 0:00:11]} g6 {[%emt 0:00:21]} 4. Nf3 {[%emt 0:00:14]} Bg7 {[%emt 0:00:06]} 5. Nc3 {[%emt 0:00:23]} e6 {[%emt 0:00:31]} 6. O-O {[%emt 0:04:37]} Nge7 {[%emt 0:00:13]} 7. d3 {[%emt 0:11:10]} O-O {[%emt 0:02:03]} 8. Rb1 {[%emt 0:07:32]} d5 {[%emt 0:04:33]} 9. Bd2 {[%emt 0:02:52] A37: Symmetrical English vs ...g6: 4 Bg2 Bg7 5 Nf3.} b6 {[%emt 0:09:09]} 10. a3 {[%emt 0:04:43]} d4 {[%emt 0:30:32]} 11. Na4 {[%emt 0:05:58] White has an edge.} Rb8 {[%emt 0:11:57]} 12. b4 {[%emt 0:17:34]} Qd6 {[%emt 0:05:52]} 13. Qc2 {[%emt 0:13:13]} Bd7 {[%emt 0:04:46]} 14. Rb2 {[%emt 0:11:34] [#]} Rfc8 $146 {[%emt 0:06:53]} ({Predecessor:} 14... e5 15. Rfb1 Rbc8 16. bxc5 bxc5 17. Ng5 f5 18. Rb7 h6 19. Bd5+ Nxd5 20. cxd5 Nd8 21. Rxa7 hxg5 22. Bxg5 Qxd5 {0-1 (34) Van Klev,F (1788)-Stephan,M (1843) Osnabrueck 2012}) 15. Rfb1 {[%emt 0:04:07]} cxb4 {[%emt 0:00:18]} 16. axb4 {[%emt 0:00:20] aiming for b5.} b5 {[%emt 0:00:21]} 17. Nc5 {[%emt 0:01:23]} Be8 {[%emt 0:00:30]} 18. Ng5 {[%emt 0:02:47] White is more active.} bxc4 {[%emt 0:02:43]} (18... Qd8 $16) 19. dxc4 $18 {[%emt 0:01:08]} d3 {[%emt 0:06:15]} (19... h6 $16) 20. exd3 {[%emt 0:00:26]} Bxb2 {[%emt 0:01:16]} (20... Nd4 $142 21. Qd1 Qb6) 21. Nge4 {[%emt 0:01:38]} (21. Rxb2 Nxb4 22. Bxb4 Rxb4 $14) 21... Qd4 {[%emt 0:01:27] [#]} (21... Qe5) 22. Rxb2 {[%emt 0:00:28]} ({Not} 22. Qxb2 Qxb2 23. Rxb2 f5 $18) 22... e5 {[%emt 0:01:21]} 23. Bc3 {[%emt 0:03:17] A strong pair of Bishops.} Qd8 {[%emt 0:00:06]} 24. Nf6+ {[%emt 0:02:52]} Kg7 {[%emt 0:00:31]} 25. Nce4 {[%emt 0:00:25] f4 is the strong threat.} Ng8 {[%emt 0:00:42]} (25... Nd4 {was necessary.} 26. Nxe8+ Qxe8 27. Bxd4 exd4) 26. Nd5 $2 {[%emt 0:00:46] [#]} (26. Nxe8+ $18 {is more deadly.} Qxe8 27. Nd6) 26... f6 $2 {[%emt 0:00:40]} (26... Nd4 $16 27. Qd2 Bc6) 27. Ra2 $2 {[%emt 0:01:09]} (27. f4 $18) 27... Ra8 $2 {[%emt 0:01:35][%mdl 8192]} (27... Bf7 $14) 28. b5 {[%emt 0:01:54]} Nd4 {[%emt 0:00:55]} 29. Bxd4 {[%emt 0:00:25]} exd4 {[%emt 0:00:16]} 30. Qb2 {[%emt 0:00:11]} Bf7 {[%emt 0:00:19]} 31. Nb4 {[%emt 0:01:15][%cal Bd5b4,Bb4c6,Bc6b8][%mdl 32]} ({Weaker is} 31. Qxd4 Bxd5 32. cxd5 Rc1+ 33. Bf1 Kh8 $16) 31... Ne7 $2 {[%emt 0:02:44]} (31... a5) 32. Ra6 {[%emt 0:00:20]} Rab8 {[%emt 0:01:44]} 33. Nd6 {[%emt 0:01:02]} Rc7 {[%emt 0:00:14]} 34. Qxd4 {[%emt 0:00:37] White is clearly winning.} Rd7 {[%emt 0:00:42]} 35. Bh3 {[%emt 0:00:30]} Nd5 {[%emt 0:01:42]} 36. Nc6 {[%emt 0:00:33]} Qc7 {[%emt 0:00:40]} 37. Bxd7 {[%emt 0:00:18]} Qxd6 {[%emt 0:00:48]} 38. Nxb8 {[%emt 0:00:15] White took control after the opening.  Weighted Error Value: White=0.43/Black=0.73} 1-0

[Event "Germany Countries-chT Youth 2022"]
[Site "Wiesbaden"]
[Date "2022.10.02"]
[Round "3"]
[White "Herrmann, Jakob"]
[Black "Semling, Johannes"]
[Result "1/2-1/2"]
[ECO "B20"]
[WhiteElo "1888"]
[BlackElo "1861"]
[Annotator "NA RC COMBH"]
[PlyCount "86"]
[EventDate "2022.09.28"]
[EventType "team-tourn"]
[EventRounds "7"]
[EventCountry "GER"]
[SourceTitle "playchess.com"]
[Source "ChessBase"]
[SourceQuality "1"]
[TimeControl "40/5400+30:1800+30"]

1. e4 {[%emt 0:00:05]} c5 {[%emt 0:00:05]} 2. Ne2 {[%emt 0:00:17]} Nf6 {[%emt 0:00:11]} 3. Nbc3 {[%emt 0:00:09]} d6 {[%emt 0:00:08]} 4. d3 {[%emt 0:00:10]} g6 5. h3 {[%emt 0:00:16]} Bg7 {[%emt 0:00:28]} 6. Be3 {[%emt 0:00:09]} Nc6 {[%emt 0:01:09]} 7. Qd2 {[%emt 0:06:45]} O-O {[%emt 0:03:51]} 8. g4 {[%emt 0:01:47]} Rb8 {[%emt 0:03:43]} 9. a4 {[%emt 0:02:14]} a6 {[%emt 0:01:19]} 10. Bg2 {[%emt 0:01:41]} b5 {[%emt 0:04:34]} 11. axb5 {[%emt 0:00:56]} axb5 {[%emt 0:00:09]} 12. O-O {[%emt 0:01:32]} b4 {[%emt 0:05:11]} 13. Nd1 {[%emt 0:00:35]} Bb7 {[%emt 0:07:29]} 14. f4 {[%emt 0:03:57]} Ne8 {[%emt 0:03:35]} 15. f5 {[%emt 0:14:04]} Nc7 $11 {[%emt 0:08:03]} 16. Bh6 {[%emt 0:14:07]} f6 {[%emt 0:10:53]} 17. Bxg7 {[%emt 0:08:13]} Kxg7 {[%emt 0:00:37]} 18. Ne3 {[%emt 0:01:00]} g5 {[%emt 0:04:47]} 19. c3 {[%emt 0:03:17]} bxc3 {[%emt 0:06:50]} 20. bxc3 {[%emt 0:00:20]} Ba6 {[%emt 0:02:53]} 21. Nd5 {[%emt 0:02:18]} Bc8 {[%emt 0:06:17]} 22. Nxc7 {[%emt 0:01:59]} Qxc7 {[%emt 0:00:07]} 23. d4 {[%emt 0:06:53]} Na5 {[%emt 0:06:31]} 24. Qa2 {[%emt 0:07:26]} Nb3 {[%emt 0:02:08]} 25. Rab1 {[%emt 0:00:34]} c4 {[%emt 0:00:28]} 26. Nc1 {[%emt 0:01:27]} Nxc1 {[%emt 0:00:54]} 27. Rfxc1 {[%emt 0:00:12]} Bd7 {[%emt 0:01:46]} 28. Bf1 {[%emt 0:10:58]} Rxb1 {[%emt 0:03:07]} 29. Rxb1 {[%emt 0:00:39]} Rc8 {[%emt 0:04:31]} 30. Qa6 {[%emt 0:03:52]} d5 {[%emt 0:03:40]} 31. e5 {[%emt 0:00:13]} Rb8 {[%emt 0:01:41]} 32. Rxb8 {[%emt 0:03:49]} Qxb8 {[%emt 0:00:04]} 33. Qa3 {[%emt 0:00:06]} Qd8 {[%emt 0:01:49]} 34. exf6+ {[%emt 0:00:32]} Kxf6 {[%emt 0:01:06]} 35. Qa6+ {[%emt 0:01:02]} Kg7 {[%emt 0:03:19]} 36. Bg2 {[%emt 0:00:56]} Qc7 {[%emt 0:00:10]} 37. Qa3 {[%emt 0:00:54]} Bc6 {[%emt 0:00:23]} 38. Qc1 {[%emt 0:00:36]} Kf6 {[%emt 0:00:48]} 39. Qe3 {[%emt 0:00:32]} Qd6 {[%emt 0:00:13]} 40. h4 {[%emt 0:00:58]} h6 {[%emt 0:01:04]} 41. hxg5+ {[%emt 0:03:57]} hxg5 {[%emt 0:00:14]} 42. Qh3 {[%emt 0:02:05]} Kg7 {[%emt 0:00:18]} 43. Qh5 {[%emt 0:00:52]} Qh6 {[%emt 0:01:49]} 1/2-1/2

[Event "Germany Countries-chT Youth 2022"]
[Site "Wiesbaden"]
[Date "2022.10.02"]
[Round "3"]
[White "Malinowsky, Levi"]
[Black "Stichter, Constantin Paul"]
[Result "1/2-1/2"]
[ECO "C11"]
[WhiteElo "1879"]
[BlackElo "1620"]
[Annotator "NA RC COMBH"]
[PlyCount "117"]
[EventDate "2022.09.28"]
[EventType "team-tourn"]
[EventRounds "7"]
[EventCountry "GER"]
[SourceTitle "playchess.com"]
[Source "ChessBase"]
[SourceQuality "1"]
[TimeControl "40/5400+30:1800+30"]

1. e4 {[%emt 0:00:03]} e6 {[%emt 0:00:01]} 2. d4 {[%emt 0:00:10]} d5 {[%emt 0:00:01]} 3. Nc3 {[%emt 0:00:12]} Nf6 {[%emt 0:00:18]} 4. e5 {[%emt 0:00:10]} Nfd7 {[%emt 0:00:09]} 5. f4 {[%emt 0:00:43]} c5 {[%emt 0:00:21]} 6. Nf3 {[%emt 0:00:51]} Nc6 {[%emt 0:00:10]} 7. Be3 {[%emt 0:01:04]} a6 {[%emt 0:00:43]} 8. Qd2 {[%emt 0:06:05]} b5 {[%emt 0:00:58]} 9. dxc5 {[%emt 0:01:20]} Bxc5 {[%emt 0:00:41]} 10. Bxc5 {[%emt 0:03:50]} Nxc5 {[%emt 0:00:26]} 11. Nd4 {[%emt 0:02:02]} Bd7 {[%emt 0:04:21]} 12. Nxc6 {[%emt 0:05:51]} Bxc6 {[%emt 0:01:03]} 13. Qd4 {[%emt 0:01:03]} (13. Qf2 $5 {[%cal Rf2c5]} Ne4 14. Nxe4 dxe4 15. Be2 $11) 13... Qe7 {[%emt 0:03:41]} 14. Bd3 {[%emt 0:03:38]} b4 {[%emt 0:13:24]} 15. Ne2 {[%emt 0:01:57]} Rb8 {[%emt 0:22:46]} 16. O-O {[%emt 0:03:51]} O-O {[%emt 0:07:10]} 17. Qe3 {[%emt 0:04:25]} Rfe8 {[%emt 0:15:19]} 18. Nd4 {[%emt 0:01:52]} Bd7 {[%emt 0:00:24]} 19. Rae1 $11 {[%emt 0:05:16]} a5 {[%emt 0:07:18]} 20. f5 {[%emt 0:05:09]} exf5 {[%emt 0:01:11]} 21. Bxf5 {[%emt 0:04:08]} Ne6 {[%emt 0:05:05]} 22. Bxe6 {[%emt 0:05:21]} fxe6 {[%emt 0:00:30]} 23. Rf4 {[%emt 0:01:45]} Rf8 {[%emt 0:03:28]} 24. Ref1 {[%emt 0:02:52]} Rxf4 {[%emt 0:01:41]} 25. Qxf4 {[%emt 0:00:56]} Rc8 {[%emt 0:02:23]} 26. h4 {[%emt 0:17:56]} a4 {[%emt 0:03:20]} 27. Kh2 {[%emt 0:04:18]} Rf8 {[%emt 0:05:12]} 28. Qxf8+ {[%emt 0:00:35]} Qxf8 {[%emt 0:00:02]} 29. Rxf8+ {[%emt 0:00:03]} Kxf8 {[%emt 0:00:02]} 30. Kg3 {[%emt 0:02:38]} Ke7 {[%emt 0:00:38]} 31. Kf4 {[%emt 0:01:38]} h6 {[%emt 0:00:45]} 32. Ke3 {[%emt 0:03:33]} Kd8 {[%emt 0:00:50]} 33. Ne2 {[%emt 0:01:27]} Kc7 {[%emt 0:01:03]} 34. Kd4 {[%emt 0:01:13]} Kc6 {[%emt 0:00:28]} 35. Nf4 {[%emt 0:00:54]} Kb5 {[%emt 0:01:23]} 36. Nh5 {[%emt 0:01:16]} Be8 {[%emt 0:00:31]} 37. Nxg7 {[%emt 0:00:51]} Bf7 {[%emt 0:00:04]} 38. g4 {[%emt 0:01:57]} a3 {[%emt 0:01:00]} 39. bxa3 {[%emt 0:02:50]} bxa3 {[%emt 0:00:03]} 40. h5 {[%emt 0:02:30]} Kc6 {[%emt 0:00:50]} 41. g5 {[%emt 0:05:44]} hxg5 {[%emt 0:04:20]} 42. h6 {[%emt 0:00:11]} Bg6 {[%emt 0:02:00]} 43. Nxe6 {[%emt 0:00:28]} g4 {[%emt 0:02:13]} 44. Nf8 {[%emt 0:01:08]} g3 {[%emt 0:02:06]} 45. Ke3 {[%emt 0:01:21]} Bxc2 {[%emt 0:07:57]} 46. h7 {[%emt 0:00:36]} Bxh7 {[%emt 0:01:21]} 47. Nxh7 {[%emt 0:18:43]} d4+ {[%emt 0:00:40]} 48. Kf3 {[%emt 0:00:06]} d3 {[%emt 0:00:32]} 49. Ng5 {[%emt 0:00:07]} g2 {[%emt 0:10:49]} 50. Nh3 {[%emt 0:00:55]} Kd5 {[%emt 0:01:14]} 51. e6 {[%emt 0:07:02]} Kxe6 {[%emt 0:01:31]} 52. Kxg2 {[%emt 0:00:57]} Kd5 {[%emt 0:00:33]} 53. Kf2 {[%emt 0:00:34]} Kc4 {[%emt 0:00:17]} 54. Nf4 {[%emt 0:00:49]} Kc3 {[%emt 0:00:16]} 55. Ke3 {[%emt 0:00:30]} Kb2 {[%emt 0:01:35]} 56. Kxd3 {[%emt 0:00:15]} Kxa2 {[%emt 0:00:13]} 57. Kc2 {[%emt 0:00:07]} Ka1 {[%emt 0:00:08]} 58. Nd3 {[%emt 0:00:34]} a2 {[%emt 0:00:15]} 59. Nf4 {[%emt 0:00:47]} 1/2-1/2

[Event "Germany Countries-chT Youth 2022"]
[Site "Wiesbaden"]
[Date "2022.10.02"]
[Round "3"]
[White "Basovskiy, Jana"]
[Black "Mueller, Sophie Charlotte"]
[Result "1-0"]
[ECO "B06"]
[WhiteElo "1858"]
[BlackElo "1435"]
[Annotator "NA RC COMBH"]
[PlyCount "31"]
[EventDate "2022.09.28"]
[EventType "team-tourn"]
[EventRounds "7"]
[EventCountry "GER"]
[SourceTitle "playchess.com"]
[Source "ChessBase"]
[SourceQuality "1"]
[TimeControl "40/5400+30:1800+30"]

1. e4 d6 {[%emt 0:00:06]} 2. d4 {[%emt 0:00:09]} g6 {[%emt 0:00:07]} 3. Nc3 {[%emt 0:00:40]} Bg7 {[%emt 0:00:25]} 4. f4 {[%emt 0:00:10]} Nd7 {[%emt 0:00:29]} 5. Nf3 {[%emt 0:00:31]} c5 {[%emt 0:00:50]} 6. Be3 {[%emt 0:04:48]} cxd4 {[%emt 0:03:05]} 7. Nxd4 {[%emt 0:09:23]} Ngf6 {[%emt 0:01:27]} 8. Qd2 {[%emt 0:03:12]} O-O {[%emt 0:03:50]} 9. O-O-O Nc5 10. Bd3 {[%emt 0:06:49]} a6 {[%emt 0:02:02]} 11. h3 {[%emt 0:09:30]} (11. Nb3 $11) 11... Qc7 {[%emt 0:08:26]} 12. g4 {[%emt 0:04:13]} b5 {[%emt 0:02:25]} 13. g5 {[%emt 0:00:55]} Nfd7 {[%emt 0:01:07]} 14. Nd5 $1 {[%emt 0:01:05]} Qd8 $2 {[%emt 0:00:47]} (14... Qb7 15. Nxe7+ Kh8) 15. Nc6 $18 {[%emt 0:04:24]} Qe8 {[%emt 0:00:44]} 16. Nc7 {[%emt 0:02:52]} 1-0

[Event "Germany Countries-chT Youth 2022"]
[Site "Wiesbaden"]
[Date "2022.10.02"]
[Round "3"]
[White "Guo, Philipp Ziming"]
[Black "Limmer, Marco"]
[Result "1-0"]
[ECO "C09"]
[WhiteElo "1851"]
[BlackElo "1704"]
[Annotator "NA RC COMBH"]
[PlyCount "67"]
[EventDate "2022.09.28"]
[EventType "team-tourn"]
[EventRounds "7"]
[EventCountry "GER"]
[SourceTitle "playchess.com"]
[Source "ChessBase"]
[SourceQuality "1"]
[TimeControl "40/5400+30:1800+30"]

1. e4 {[%emt 0:00:03]} e6 {[%emt 0:00:04]} 2. d4 {[%emt 0:00:09]} d5 {[%emt 0:00:05]} 3. Nd2 {[%emt 0:00:09]} c5 {[%emt 0:00:14]} 4. exd5 {[%emt 0:00:09]} exd5 {[%emt 0:00:10]} 5. Ngf3 {[%emt 0:00:39]} Nc6 {[%emt 0:01:48]} 6. Bb5 {[%emt 0:00:46]} Bd7 {[%emt 0:03:34]} 7. O-O {[%emt 0:02:12]} Nf6 {[%emt 0:10:30]} 8. Re1+ {[%emt 0:04:21]} Be7 {[%emt 0:05:06]} 9. dxc5 {[%emt 0:01:49]} O-O {[%emt 0:01:42]} 10. Nb3 {[%emt 0:02:11]} a6 {[%emt 0:05:27]} 11. Bxc6 $16 {[%emt 0:03:06]} Bxc6 {[%emt 0:00:50]} 12. Be3 {[%emt 0:11:13]} Rc8 {[%emt 0:10:34]} 13. Ne5 {[%emt 0:14:15]} Ba4 {[%emt 0:05:20]} 14. Nd3 {[%emt 0:04:31]} Ne4 {[%emt 0:03:48]} 15. Nf4 {[%emt 0:02:49]} Bxb3 {[%emt 0:09:12]} 16. axb3 {[%emt 0:02:53]} Bxc5 {[%emt 0:02:54]} 17. Nxd5 {[%emt 0:02:34]} Bxe3 {[%emt 0:01:14]} 18. Rxe3 {[%emt 0:00:41]} Nf6 {[%emt 0:01:41]} 19. Ne7+ {[%emt 0:00:31]} Kh8 {[%emt 0:00:07]} 20. Nxc8 {[%emt 0:00:13]} Qxc8 {[%emt 0:00:05]} 21. Ra4 {[%emt 0:01:57]} Rd8 {[%emt 0:00:30]} 22. Rd4 {[%emt 0:00:55]} Rxd4 {[%emt 0:00:20]} 23. Qxd4 {[%emt 0:00:04]} h6 {[%emt 0:00:35]} 24. c4 {[%emt 0:01:14]} Qf5 {[%emt 0:00:31]} 25. Qd8+ {[%emt 0:00:39]} Ng8 {[%emt 0:00:20]} 26. h3 {[%emt 0:01:48]} Qb1+ {[%emt 0:01:14]} 27. Kh2 {[%emt 0:00:09]} Qf5 {[%emt 0:00:25]} 28. Qb8 {[%emt 0:05:00]} Kh7 {[%emt 0:00:47]} 29. Rf3 {[%emt 0:01:50]} Qd7 {[%emt 0:00:12]} 30. Qf4 {[%emt 0:00:20]} Nf6 {[%emt 0:00:37]} 31. Qf5+ {[%emt 0:00:20]} Qxf5 {[%emt 0:00:10]} 32. Rxf5 {[%emt 0:00:04]} Kg6 {[%emt 0:00:18]} 33. Re5 {[%emt 0:00:26]} Ng8 {[%emt 0:00:12]} 34. Re8 {[%emt 0:00:15]} 1-0

[Event "Germany Countries-chT Youth 2022"]
[Site "Wiesbaden"]
[Date "2022.10.02"]
[Round "3"]
[White "Uhlmann, Tim"]
[Black "Tovmasyan, Minas"]
[Result "0-1"]
[ECO "B40"]
[WhiteElo "1841"]
[BlackElo "1838"]
[Annotator "NA RC COMBH"]
[PlyCount "114"]
[EventDate "2022.09.28"]
[EventType "team-tourn"]
[EventRounds "7"]
[EventCountry "GER"]
[SourceTitle "playchess.com"]
[Source "ChessBase"]
[SourceQuality "1"]
[TimeControl "40/5400+30:1800+30"]

1. e4 {[%emt 0:00:02]} c5 {[%emt 0:00:10]} 2. Nf3 {[%emt 0:00:05]} e6 {[%emt 0:00:06]} 3. c4 {[%emt 0:00:03]} a6 {[%emt 0:00:15]} 4. Nc3 {[%emt 0:00:13]} Qc7 {[%emt 0:01:19]} 5. d4 {[%emt 0:00:06]} cxd4 {[%emt 0:00:06]} 6. Nxd4 {[%emt 0:00:04]} Nf6 {[%emt 0:00:50]} 7. a3 {[%emt 0:00:07]} b6 {[%emt 0:00:30]} 8. Be2 {[%emt 0:00:42]} Bb7 {[%emt 0:00:23]} 9. f3 {[%emt 0:00:15]} d6 {[%emt 0:00:37]} 10. O-O {[%emt 0:00:30]} Be7 {[%emt 0:00:11]} 11. Be3 {[%emt 0:00:11]} O-O {[%emt 0:00:27]} 12. Qd2 {[%emt 0:00:35]} Nbd7 {[%emt 0:01:00]} 13. Rfd1 {[%emt 0:00:24]} Rfe8 {[%emt 0:05:15]} 14. Rac1 {[%emt 0:00:16]} h5 {[%emt 0:00:21]} (14... Rac8 $14 {deserves consideration.}) 15. Bf2 {[%emt 0:01:30]} Rac8 {[%emt 0:03:49]} 16. Qe1 {[%emt 0:01:00]} Qb8 {[%emt 0:03:47]} 17. Kh1 {[%emt 0:01:08]} Ne5 $14 {[%emt 0:18:56]} 18. Na4 {[%emt 0:08:13]} Nfd7 {[%emt 0:06:35]} 19. b4 {[%emt 0:04:27]} Ng6 {[%emt 0:03:38]} 20. Qg1 {[%emt 0:02:40]} (20. Qd2 $14) 20... Bd8 {[%emt 0:06:47]} 21. Nb3 {[%emt 0:06:05]} Bc6 {[%emt 0:04:06]} 22. b5 {[%emt 0:00:56]} Ba8 {[%emt 0:09:27]} 23. bxa6 {[%emt 0:09:27]} Nc5 {[%emt 0:19:29]} 24. Nbxc5 {[%emt 0:00:26]} bxc5 {[%emt 0:01:23]} 25. Nc3 {[%emt 0:03:53]} Rc6 {[%emt 0:01:45]} 26. Nb5 {[%emt 0:09:05]} Rxa6 {[%emt 0:01:42]} 27. Rb1 {[%emt 0:00:32]} Rb6 {[%emt 0:04:37]} 28. a4 {[%emt 0:02:38]} Be7 {[%emt 0:03:01]} 29. a5 {[%emt 0:11:58]} Rb7 {[%emt 0:00:08]} 30. a6 {[%emt 0:00:26]} Rb6 {[%emt 0:00:29]} 31. Nc3 {[%emt 0:02:47]} Qa7 {[%emt 0:01:25]} 32. Rxb6 {[%emt 0:01:28]} Qxb6 {[%emt 0:00:05]} 33. Nb5 {[%emt 0:01:19]} Rc8 {[%emt 0:02:00]} 34. Ra1 {[%emt 0:06:03]} Ne5 {[%emt 0:01:50]} 35. Be1 {[%emt 0:03:41]} Nc6 {[%emt 0:00:23]} 36. Bc3 {[%emt 0:04:06]} Rd8 {[%emt 0:01:05]} 37. f4 {[%emt 0:05:23]} h4 {[%emt 0:00:09]} 38. Qf2 {[%emt 0:03:20]} h3 {[%emt 0:00:40]} 39. Bf3 {[%emt 0:00:38]} Qb8 {[%emt 0:00:42]} 40. Qg3 {[%emt 0:06:18]} hxg2+ {[%emt 0:00:25]} 41. Qxg2 {[%emt 0:30:14]} e5 {[%emt 0:01:22]} 42. f5 {[%emt 0:00:00]} Nd4 {[%emt 0:09:32]} 43. Ba5 {[%emt 0:00:00]} Rd7 {[%emt 0:03:43]} 44. Bg4 {[%emt 0:00:00]} Bf6 {[%emt 0:01:11]} 45. Nc3 {[%emt 0:00:00]} Ra7 {[%emt 0:04:20]} 46. Rb1 {[%emt 0:05:47]} Qc8 {[%emt 0:01:12]} 47. Nd5 {[%emt 0:03:28]} Bxd5 {[%emt 0:00:18]} 48. cxd5 {[%emt 0:01:10]} Rxa6 {[%emt 0:01:38]} 49. Bc3 {[%emt 0:00:38]} Qa8 {[%emt 0:00:49]} 50. Qb2 {[%emt 0:00:40]} Ra3 {[%emt 0:04:03]} 51. Ra1 {[%emt 0:00:29]} Rxa1+ {[%emt 0:00:41]} 52. Qxa1 {[%emt 0:00:04]} Qb7 {[%emt 0:05:12]} 53. Bxd4 {[%emt 0:00:52]} exd4 {[%emt 0:00:11]} 54. Be2 {[%emt 0:00:32]} d3 {[%emt 0:00:30]} 55. Qd1 {[%emt 0:00:24]} dxe2 {[%emt 0:00:22]} 56. Qxe2 {[%emt 0:00:04]} Qb1+ {[%emt 0:00:22]} 57. Kg2 {[%emt 0:00:04]} Qb2 {[%emt 0:00:11]} 0-1